bitfinex-derivatives/quotes_BNBF0:USTF0_20250326
["timestamp","ask_amount","ask_price","bid_price","bid_amount"]
[1742986203673,1.19464806,631.1,630.58,0.26363589]
[1742986203870,1.19464806,631.09,630.59,1.1840056]
[1742986204067,1.19464806,631.08,630.6,0.26363589]
[1742986204270,1.19464806,631.07,630.6,0.26363589]
[1742986204474,0.578,631.24,630.6,0.26363589]
[1742986204673,1.19658929,631.23,630.6,0.26363589]
[1742986204873,1.19658929,631.22,630.6,0.26363589]
[1742986205074,1.19658929,631.21,630.6,0.26363589]
[1742986205273,1.19658929,631.2,630.6,0.26363589]
[1742986205474,1.19658929,631.19,630.6,0.26363589]
[1742986205675,1.19658929,631.18,630.6,0.26363589]
[1742986205870,1.19658929,631.17,630.6,0.26363589]
[1742986206175,1.19658929,631.16,630.6,0.26363589]
[1742986206371,1.19658929,631.15,630.95,1.18365594]
[1742986206577,1.19658929,631.14,630.95,1.18365594]
[1742986206780,0.578,631.24,630.95,1.18365594]
[1742986207076,1.19677741,631.23,630.95,1.18365594]
[1742986207275,1.19677741,631.22,630.95,1.18365594]
[1742986207475,1.19677741,631.21,630.95,1.18365594]
[1742986207676,1.19677741,631.2,630.95,1.18365594]
[1742986207871,1.19677741,631.19,630.95,1.18365594]
[1742986208075,1.19681349,631.18,630.95,1.18365594]
[1742986208277,1.19681349,631.17,630.96,1.18365594]
[1742986208475,1.19681349,631.16,630.96,1.18365594]
[1742986208675,1.19681349,631.15,630.96,1.18365594]
[1742986208976,1.19681349,631.14,630.96,1.18365594]
[1742986209169,0.578,631.24,630.88,1.18365594]
[1742986209170,1.19681349,631.13,630.88,1.18365594]
[1742986209378,1.19681349,631.12,630.88,1.18365594]
[1742986209575,0.578,631.24,630.88,1.18365594]
[1742986209776,1.19687649,631.23,630.88,1.18365594]
[1742986210078,1.19687649,631.22,630.88,1.18365594]
[1742986210277,1.19687649,631.21,630.88,1.18365594]
[1742986210477,1.19687649,631.2,630.88,1.18365594]
[1742986210672,1.19687649,631.19,630.88,1.18365594]
[1742986210875,1.19687649,631.18,630.88,1.18365594]
[1742986211071,1.19687649,631.17,630.88,1.18365594]
[1742986211276,0.578,631.24,630.58,1.00776821]
[1742986211277,1.19686585,631.16,630.91,1.18365594]
[1742986211473,1.19686585,631.15,630.91,1.18365594]
[1742986211675,1.19686585,631.14,630.91,1.18365594]
[1742986211872,1.19686585,631.13,630.91,1.18365594]
[1742986212178,1.19686585,631.12,630.91,1.18365594]
[1742986212472,0.578,631.24,630.91,1.18365594]
[1742986212678,1.19683067,631.23,630.91,1.18365594]
[1742986212977,1.19683067,631.22,630.91,1.18365594]
[1742986213173,1.19683067,631.21,630.91,1.18365594]
[1742986213372,1.19683067,631.2,630.91,1.18365594]
[1742986213577,1.19683067,631.2,630.66,1.1840056]
[1742986213578,1.19683067,631.19,630.84,1.18365594]
[1742986213777,1.19683067,631.18,630.84,1.18365594]
[1742986213978,1.19683067,631.17,630.84,1.18365594]
[1742986214178,1.19683067,631.16,630.84,1.18365594]
[1742986214375,1.19683067,631.15,630.84,1.18365594]
[1742986214572,1.19683067,631.14,630.84,1.18365594]
[1742986214876,1.19683067,631.13,630.84,1.18365594]
[1742986215173,1.19678558,631.12,630.84,1.18365594]
[1742986215479,1.19676563,631.11,630.84,1.18365594]
[1742986215679,1.19676563,631.1,630.84,1.18365594]
[1742986215881,1.19676563,631.09,630.84,1.18365594]
[1742986216083,1.19676563,631.08,630.84,1.18365594]
[1742986216280,1.19676563,631.07,630.84,1.18365594]
[1742986216480,1.19676563,631.06,630.84,1.18365594]
[1742986216682,1.19676563,631.05,630.84,1.18365594]
[1742986216881,0.578,631.05,630.84,1.18365594]
[1742986217683,1.163,631.04,630.84,1.18365594]
[1742986217882,1.163,631.04,630.94,1.18365594]
[1742986219880,1.19674754,631.03,630.94,1.18365594]
[1742986220080,1.19674754,631.02,630.94,1.18365594]
[1742986220276,1.163,631.04,630.94,1.18365594]
[1742986220481,1.19672378,631.03,630.94,1.18365594]
[1742986220677,1.163,631.04,630.94,1.18365594]
[1742986220880,1.19671843,631.03,630.94,1.18365594]
[1742986221177,1.163,631.04,630.94,1.18365594]
[1742986221376,1.19671781,631.03,630.94,1.18365594]
[1742986221581,1.163,631.04,630.94,1.18365594]
[1742986221781,1.19667228,631.03,630.94,1.18365594]
[1742986221980,1.163,631.04,630.94,1.18365594]
[1742986222177,1.196674,631.03,630.94,1.18365594]
[1742986222380,1.163,631.04,630.97,1.18365594]
[1742986222583,1.19663046,631.03,630.97,1.18365594]
[1742986222781,1.163,631.04,630.97,1.18365594]
[1742986222983,1.19663047,631.03,630.97,1.18365594]
[1742986223282,1.163,631.04,630.97,1.18365594]
[1742986223483,1.19660339,631.03,630.97,1.18365594]
[1742986223684,1.163,631.04,630.97,1.18365594]
[1742986223885,1.19660587,631.03,630.97,1.18365594]
[1742986224178,1.163,631.04,630.97,1.18365594]
[1742986224784,1.19657081,631.03,630.75,1.18365594]
[1742986224985,1.163,631.04,630.75,1.18365594]
[1742986225184,1.19658416,631.03,630.75,1.18365594]
[1742986225384,1.163,631.04,630.75,1.18365594]
[1742986225585,1.19656786,631.03,630.75,1.18365594]
[1742986225781,1.163,631.04,630.75,1.18365594]
[1742986225981,1.19656338,631.03,630.75,1.18365594]
[1742986226179,1.163,631.04,630.75,1.18365594]
[1742986226384,1.19656338,631.03,630.75,1.18365594]
[1742986226585,1.163,631.04,630.75,1.18365594]
[1742986226879,1.19654991,631.03,630.75,1.18365594]
[1742986227084,1.163,631.04,630.75,1.18365594]
[1742986228685,1.163,631.04,630.72,1.18365594]
[1742986229678,1.163,631.04,630.73,0.26360468]
[1742986231786,0.578,631.05,630.99,1.18365594]
[1742986233989,0.578,631.05,630.95,1.18365594]
[1742986235896,0.578,631.05,631.0,1.18365594]
[1742986238705,0.578,631.05,631.01,1.18365594]
[1742986241505,0.578,631.05,630.58,1.00825951]
[1742986241506,0.578,631.05,631.02,1.18365594]
[1742986242798,1.145,631.07,631.02,1.18365594]
[1742986243506,1.145,631.07,630.9,1.18365594]
[1742986244909,1.145,631.07,630.89,1.18365594]
[1742986245808,1.724,631.07,630.89,1.18365594]
[1742986246807,1.724,631.07,630.88,1.18365594]
[1742986248109,2.16,631.07,630.88,1.18365594]
[1742986251912,2.16,631.07,630.95,1.18365594]
[1742986253816,2.16,631.07,630.93,1.18365594]
[1742986256418,2.16,631.07,630.94,1.18365594]
[1742986258220,2.16,631.07,631.04,1.18365594]
[1742986258517,1.015,631.07,631.04,1.18365594]
[1742986259116,0.579,631.07,631.04,1.18365594]
[1742986260319,0.579,631.07,631.05,1.18365594]
[1742986261012,1.19703433,631.06,631.05,1.18365594]
[1742986261213,0.579,631.07,631.05,1.18365594]
[1742986261418,1.19703383,631.06,631.05,1.18365594]
[1742986261816,0.579,631.07,631.05,1.18365594]
[1742986262414,1.19703452,631.06,631.05,1.18365594]
[1742986262816,0.579,631.07,631.05,1.18365594]
[1742986263422,0.579,631.07,630.99,1.18365594]
[1742986264723,1.537,631.17,630.99,1.18365594]
[1742986264924,1.19696999,631.16,630.99,1.18365594]
[1742986265124,1.19696999,631.15,630.99,1.18365594]
[1742986265424,1.19696999,631.14,630.99,1.18365594]
[1742986265626,1.19696999,631.13,630.99,1.18365594]
[1742986265827,1.19696999,631.12,631.05,1.18365594]
[1742986266025,1.19696999,631.11,631.05,1.18365594]
[1742986266225,1.19696999,631.1,631.05,1.18365594]
[1742986266427,1.19696999,631.09,631.05,1.18365594]
[1742986266727,1.537,631.17,631.05,1.18365594]
[1742986266927,1.19694619,631.16,631.05,1.18365594]
[1742986267227,1.19694619,631.15,631.05,1.18365594]
[1742986267527,1.19694619,631.14,631.06,1.18365594]
[1742986267826,1.19694619,631.13,631.06,1.18365594]
[1742986268037,1.19694619,631.12,631.06,1.18365594]
[1742986268234,1.537,631.17,631.06,1.18365594]
[1742986268235,1.19694619,631.11,631.06,1.18365594]
[1742986268436,1.19694619,631.1,631.06,1.18365594]
[1742986268736,1.19694619,631.09,631.06,1.18365594]
[1742986268936,1.537,631.17,631.06,1.18365594]
[1742986269136,1.19694811,631.16,631.06,1.18365594]
[1742986269334,1.19694811,631.15,631.0,1.18365594]
[1742986269531,1.19694811,631.14,631.0,1.18365594]
[1742986269831,1.19694811,631.13,631.0,1.18365594]
[1742986270031,1.19694811,631.12,631.0,1.18365594]
[1742986270233,1.19694811,631.11,631.0,1.18365594]
[1742986270438,1.537,631.17,631.0,1.18365594]
[1742986270738,1.19690894,631.16,631.0,1.18365594]
[1742986270938,1.537,631.17,631.0,1.18365594]
[1742986270939,1.19690894,631.15,631.0,1.18365594]
[1742986271233,1.19690894,631.14,631.0,1.18365594]
[1742986271437,1.19690894,631.13,631.0,1.18365594]
[1742986271636,1.19690894,631.12,631.0,1.18365594]
[1742986271833,1.19690894,631.11,630.93,1.18365594]
[1742986272037,1.537,631.17,630.93,1.18365594]
[1742986272238,1.19682623,631.16,630.93,1.18365594]
[1742986272434,1.537,631.17,630.93,1.18365594]
[1742986275041,1.537,631.17,630.79,1.18365594]
[1742986275339,1.537,631.17,630.8,0.26338863]
[1742986276439,0.436,631.17,630.8,0.26338863]
[1742986277136,0.436,631.17,630.98,1.18365594]
[1742986279143,0.911,631.16,630.95,1.18365594]
[1742986281235,0.911,631.16,630.94,1.18365594]
[1742986284041,0.911,631.16,630.93,1.18365594]
[1742986284638,0.579,631.15,630.93,1.18365594]
[1742986284844,0.579,631.15,630.94,0.2633902]
[1742986285846,0.579,631.15,630.93,1.18365594]
[1742986286047,0.579,631.15,631.0,1.18365594]
[1742986288546,0.579,631.15,631.01,0.2632699]
[1742986289543,0.579,631.15,630.91,1.18365594]
[1742986289751,0.579,631.15,630.92,0.26326946]
[1742986291052,0.579,631.15,631.01,1.18365594]
[1742986292654,0.436,631.14,631.01,1.18365594]
[1742986294453,0.436,631.14,630.94,1.18365594]
[1742986294855,0.436,631.14,630.95,0.26325344]
[1742986296252,0.436,631.14,631.01,1.18365594]
[1742986297948,0.436,631.14,631.02,0.26325102]
[1742986298951,0.436,631.14,631.02,1.18365594]
[1742986299150,0.436,631.14,631.03,0.26325479]
[1742986299354,0.436,631.14,631.02,1.18365594]
[1742986300855,0.436,631.14,630.82,1.18365594]
[1742986303157,0.436,631.14,630.84,1.18365594]
[1742986305960,0.436,631.14,630.85,0.26327779]
[1742986306259,0.436,631.14,630.87,1.18365594]
[1742986306459,0.579,631.13,630.88,0.26327779]
[1742986308256,0.579,631.13,631.06,1.18365594]
[1742986310763,0.579,631.13,631.07,1.18365594]
[1742986313269,0.579,631.13,631.04,1.1840056]
[1742986316071,0.579,631.13,630.97,1.1840056]
[1742986318167,0.579,631.13,630.94,1.1840056]
[1742986320174,0.579,631.13,630.9,1.1840056]
[1742986320376,0.579,631.13,630.91,0.26329998]
[1742986322278,0.579,631.13,630.9,1.1840056]
[1742986322480,0.579,631.13,630.92,1.1840056]
[1742986324275,0.579,631.13,630.94,1.18299013]
[1742986326476,0.579,631.13,630.95,0.26337118]
[1742986326683,0.579,631.13,631.04,1.18299013]
[1742986327077,0.579,631.13,631.05,0.26338455]
[1742986328781,0.579,631.13,631.06,1.00713447]
[1742986328983,0.579,631.13,631.07,0.26338455]
[1742986331087,0.579,631.13,631.1,1.18241699]
[1742986334787,1.28,631.19,631.1,1.18241699]
[1742986335888,1.28,631.19,630.86,1.18258271]
[1742986337588,1.28,631.19,623.45,5.68760351]
[1742986337589,1.86,631.19,630.84,1.18258271]
[1742986343188,1.86,631.19,630.82,1.18258271]
[1742986344696,1.86,631.19,630.83,0.26354984]
[1742986345289,1.86,631.19,630.8,0.26354984]
[1742986345493,1.86,631.19,630.81,0.26354984]
[1742986345698,1.86,631.19,630.82,0.26352682]
[1742986345889,1.86,631.19,630.8,0.26352682]
[1742986346093,1.86,631.19,630.81,0.26352682]
[1742986346294,1.86,631.19,630.8,0.26352682]
[1742986346495,1.86,631.19,630.81,0.26352682]
[1742986346696,1.86,631.19,630.82,0.26352682]
[1742986346897,1.86,631.19,630.8,0.26352682]
[1742986347098,1.86,631.19,630.81,0.26352682]
[1742986347293,1.86,631.19,630.79,1.18258271]
[1742986347294,1.86,631.19,630.8,0.26352682]
[1742986347497,1.86,631.19,630.98,1.18258271]
[1742986354099,1.86,631.19,630.96,1.18258271]
[1742986356601,1.86,631.19,630.66,0.27569379]
[1742986356602,1.86,631.19,630.92,1.18258271]
[1742986357302,1.86,631.19,630.93,0.26348687]
[1742986358002,1.86,631.19,631.03,1.18258271]
[1742986360502,1.86,631.19,630.67,1.00512433]
[1742986360503,1.86,631.19,630.96,1.18258271]
[1742986362806,1.86,631.19,630.95,1.18258271]
[1742986367012,1.86,631.19,630.66,0.27569488]
[1742986367013,1.86,631.19,630.96,1.18258271]
[1742986369207,1.86,631.19,630.97,1.18258271]
[1742986371511,1.86,631.19,630.92,1.18258271]
[1742986375815,1.86,631.19,630.97,1.18258271]
[1742986377610,1.86,631.19,630.98,1.18258271]
[1742986380014,1.86,631.19,630.71,1.18258271]
[1742986380015,1.86,631.19,631.13,1.18258271]
[1742986380218,0.27569816,631.56,631.13,1.18258271]
[1742986380416,1.19488969,631.55,631.13,1.18258271]
[1742986380620,1.19488969,631.54,631.13,1.18258271]
[1742986380920,1.19488969,631.53,631.13,1.18258271]
[1742986381123,1.19488969,631.52,631.13,1.18258271]
[1742986381318,1.19488969,631.51,631.13,1.18258271]
[1742986381519,1.19488969,631.5,631.13,1.18258271]
[1742986381819,1.19488969,631.49,631.13,1.18258271]
[1742986382020,1.19488969,631.48,631.13,1.18258271]
[1742986382221,1.19488969,631.47,631.13,1.18258271]
[1742986382416,1.19488969,631.46,631.13,1.18258271]
[1742986382616,1.19488969,631.45,631.13,1.18258271]
[1742986382824,1.19488969,631.44,631.13,1.18258271]
[1742986383124,1.19488969,631.43,630.94,1.18258271]
[1742986383319,1.19488969,631.42,630.94,1.18258271]
[1742986383520,1.19488969,631.41,630.94,1.18258271]
[1742986383716,1.19488969,631.4,630.94,1.18258271]
[1742986383919,1.19488969,631.39,630.94,1.18258271]
[1742986384122,1.19488969,631.38,630.94,1.18258271]
[1742986384323,1.19488969,631.37,630.94,1.18258271]
[1742986384517,1.19488969,631.36,630.94,1.18258271]
[1742986384722,1.19488969,631.35,630.94,1.18258271]
[1742986384920,1.19488969,631.34,630.81,1.18258271]
[1742986385122,1.19488969,631.33,630.81,1.18258271]
[1742986385323,1.19488969,631.32,630.81,1.18258271]
[1742986385524,1.19488969,631.31,630.81,1.18258271]
[1742986385820,1.19488969,631.3,630.81,1.18258271]
[1742986386024,1.19488969,631.29,630.81,1.18258271]
[1742986386225,1.19488969,631.28,630.81,1.18258271]
[1742986386425,1.19488969,631.27,630.81,1.18258271]
[1742986386721,1.19488969,631.26,630.81,1.18258271]
[1742986386924,1.19488969,631.25,630.81,1.18258271]
[1742986387127,1.781,631.39,630.79,1.18258271]
[1742986387128,1.19488969,631.24,630.79,1.18258271]
[1742986387326,1.19488969,631.23,630.79,1.18258271]
[1742986387526,1.19488969,631.22,630.79,1.18258271]
[1742986387727,1.19488969,631.21,630.79,1.18258271]
[1742986387927,1.19488969,631.2,630.79,1.18258271]
[1742986388127,1.19488969,631.19,630.79,1.18258271]
[1742986388328,1.19488969,631.18,630.79,1.18258271]
[1742986388528,1.19488969,631.17,630.79,1.18258271]
[1742986388732,1.19488969,631.16,630.79,1.18258271]
[1742986389031,1.19488969,631.15,630.79,1.18258271]
[1742986389230,1.19488969,631.14,630.79,1.18258271]
[1742986389431,1.781,631.39,630.79,1.18258271]
[1742986389632,1.19568254,631.38,630.79,1.18258271]
[1742986389833,1.19568254,631.37,630.79,1.18258271]
[1742986390131,1.19568254,631.36,630.81,1.18258271]
[1742986390327,1.19568254,631.35,630.81,1.18258271]
[1742986390531,1.781,631.39,630.81,1.18258271]
[1742986390532,1.19568254,631.34,630.81,1.18258271]
[1742986390733,1.19568254,631.33,630.81,1.18258271]
[1742986390934,1.19568254,631.32,630.81,1.18258271]
[1742986391128,1.19568254,631.31,630.81,1.18258271]
[1742986391332,1.19568254,631.3,630.81,1.18258271]
[1742986391534,1.781,631.39,617.81,8.53140527]
[1742986391535,1.19568254,631.29,630.83,1.18258271]
[1742986391733,1.781,631.39,630.83,1.18258271]
[1742986391734,1.19568254,631.28,630.83,1.18258271]
[1742986391931,1.19568254,631.27,630.83,1.18258271]
[1742986392235,1.19568254,631.26,630.83,1.18258271]
[1742986392435,1.19568254,631.25,630.83,1.18258271]
[1742986392633,1.19568254,631.24,630.83,1.18258271]
[1742986392834,1.19568254,631.23,630.83,1.18258271]
[1742986393134,1.19568254,631.22,630.83,1.18258271]
[1742986393335,1.19568254,631.21,630.83,1.18258271]
[1742986393535,1.19568254,631.2,630.83,1.18258271]
[1742986393834,1.19568254,631.19,630.83,1.18258271]
[1742986394035,1.19568254,631.18,630.83,1.18258271]
[1742986394234,1.19568254,631.17,630.83,1.18258271]
[1742986394434,1.19568254,631.16,630.83,1.18258271]
[1742986394637,1.19568254,631.15,630.85,1.18258271]
[1742986394830,1.19568254,631.14,630.85,1.18258271]
[1742986395029,1.19568254,631.13,630.85,1.18258271]
[1742986395336,1.19568254,631.12,630.85,1.18258271]
[1742986395635,1.19568254,631.11,630.85,1.18258271]
[1742986395835,1.201,631.39,630.85,1.18258271]
[1742986396032,1.19597917,631.38,630.85,1.18258271]
[1742986396233,1.19597917,631.37,630.85,1.18258271]
[1742986396427,1.19597917,631.36,630.85,1.18258271]
[1742986396629,1.19597917,631.35,630.83,1.18258271]
[1742986396836,1.19597917,631.34,630.83,1.18258271]
[1742986397033,1.19597917,631.33,630.83,1.18258271]
[1742986397235,1.19597917,631.32,630.83,1.18258271]
[1742986397430,1.19597917,631.31,630.83,1.18258271]
[1742986397628,1.201,631.39,630.83,1.18258271]
[1742986397629,1.19597917,631.3,630.83,1.18258271]
[1742986397828,1.19589698,631.29,630.83,1.18258271]
[1742986398030,1.19589698,631.28,630.83,1.18258271]
[1742986398235,1.19589698,631.27,630.83,1.18258271]
[1742986398439,1.19589698,631.26,630.83,1.18258271]
[1742986398632,1.19589698,631.25,630.83,1.18258271]
[1742986398833,1.19589698,631.24,630.83,1.18258271]
[1742986399033,1.19589698,631.23,630.83,1.18258271]
[1742986399233,1.19589698,631.22,630.86,1.18258271]
[1742986399434,1.19589698,631.21,630.86,1.18258271]
[1742986399633,1.19589698,631.2,630.86,1.18258271]
[1742986399833,1.19589698,631.19,630.86,1.18258271]
[1742986400033,1.19589698,631.18,630.86,1.18258271]
[1742986400233,1.19589698,631.17,630.86,1.18258271]
[1742986400438,1.19589698,631.16,630.86,1.18258271]
[1742986400638,1.19589698,631.15,630.86,1.18258271]
[1742986400839,1.19589698,631.14,630.86,1.18258271]
[1742986401039,1.19589698,631.13,630.94,1.18258271]
[1742986401232,1.19589698,631.12,630.94,1.18258271]
[1742986401438,1.19589698,631.11,630.94,1.18258271]
[1742986401636,1.19568065,631.1,630.94,1.18258271]
[1742986401833,1.19568065,631.09,630.94,1.18258271]
[1742986402038,1.19568065,631.08,630.94,1.18258271]
[1742986402235,1.19568065,631.07,630.94,1.18258271]
[1742986402539,1.19568065,631.06,630.94,1.18258271]
[1742986402737,1.19568065,631.05,630.94,1.18258271]
[1742986402938,0.437,631.17,630.94,1.18258271]
[1742986403136,0.437,631.17,630.57,0.31717335]
[1742986403137,1.19546754,631.16,630.78,1.18258271]
[1742986403338,1.19546754,631.15,630.78,1.18258271]
[1742986403542,1.19546754,631.14,630.78,1.18258271]
[1742986403743,1.19546754,631.13,630.78,1.18258271]
[1742986404042,1.19546754,631.12,630.78,1.18258271]
[1742986404236,1.19546754,631.11,630.78,1.18258271]
[1742986404440,1.19546754,631.1,630.78,1.18258271]
[1742986404640,1.19546754,631.09,630.78,1.18258271]
[1742986404836,1.19546754,631.08,630.78,1.18258271]
[1742986405036,1.19546754,631.07,630.78,1.18258271]
[1742986405236,0.437,631.17,630.57,0.31717335]
[1742986405237,1.19546754,631.06,630.77,1.18258271]
[1742986405442,0.437,631.17,630.77,1.18258271]
[1742986405642,1.19497508,631.16,630.77,1.18258271]
[1742986405843,1.19497508,631.15,630.77,1.18258271]
[1742986406146,1.19497508,631.14,630.77,1.18258271]
[1742986406345,0.437,631.17,630.77,1.18258271]
[1742986406346,1.19497508,631.13,630.77,1.18258271]
[1742986406544,1.19497508,631.12,630.77,1.18258271]
[1742986406744,1.19497508,631.11,630.77,1.18258271]
[1742986406946,0.437,631.17,630.77,1.18258271]
[1742986406947,1.19497508,631.1,630.77,1.18258271]
[1742986407247,0.437,631.17,630.57,0.31717335]
[1742986407248,1.19497508,631.09,630.57,0.31717335]
[1742986407449,1.19450572,631.08,630.57,0.31717335]
[1742986407649,0.437,631.17,630.57,0.31717335]
[1742986407650,1.19450572,631.07,630.57,0.31717335]
[1742986407949,1.19450572,631.06,630.57,0.31717335]
[1742986408150,1.19450572,631.05,630.57,0.31717335]
[1742986408350,1.19450572,631.04,630.57,0.31717335]
[1742986408548,1.19450572,631.03,630.57,0.31717335]
[1742986408743,1.19450572,631.02,630.57,0.31717335]
[1742986408943,1.19450572,631.01,630.57,0.31717335]
[1742986409150,1.19450572,631.0,630.57,0.31717335]
[1742986409349,0.437,631.17,630.57,0.31717335]
[1742986409550,1.19400864,631.16,630.57,0.31717335]
[1742986409744,1.19400864,631.15,630.57,0.31717335]
[1742986409953,1.19400864,631.14,630.57,0.31717335]
[1742986410145,0.437,631.17,630.57,0.31717335]
[1742986410146,1.19400864,631.13,630.57,0.31717335]
[1742986410348,1.19400864,631.12,630.57,0.31717335]
[1742986410645,1.19400864,631.11,630.57,0.31717335]
[1742986410849,1.19400864,631.1,630.57,0.31717335]
[1742986411149,1.19400864,631.09,630.57,0.31717335]
[1742986411350,1.19400864,631.08,630.57,0.31717335]
[1742986411546,0.437,631.17,630.57,0.31717335]
[1742986411747,1.19357925,631.16,630.57,0.31717335]
[1742986411945,1.19357925,631.15,630.57,0.31717335]
[1742986412143,1.19357925,631.14,630.57,0.31717335]
[1742986412348,1.19357925,631.13,630.57,0.31717335]
[1742986412543,1.19357925,631.12,630.57,0.31717335]
[1742986412745,0.886,631.14,630.57,0.31717335]
[1742986412746,1.19357925,631.11,630.57,0.31717335]
[1742986412945,1.19357925,631.1,630.57,0.31717335]
[1742986413144,0.886,631.14,630.57,0.31717335]
[1742986413345,1.19339317,631.13,630.57,0.31717335]
[1742986413551,1.19339317,631.12,630.57,0.31717335]
[1742986413746,1.19339317,631.11,630.57,0.31717335]
[1742986414052,1.19339317,631.1,630.57,0.31717335]
[1742986414252,1.19339317,631.09,630.57,0.31717335]
[1742986414449,0.886,631.14,630.57,0.31717335]
[1742986414646,1.1930761,631.13,630.57,0.31717335]
[1742986414846,1.1930761,631.12,630.57,0.31717335]
[1742986415048,1.1930761,631.11,630.57,0.31717335]
[1742986415246,1.1930761,631.1,630.57,0.31717335]
[1742986415447,0.886,631.14,630.58,0.26383843]
[1742986415647,1.19294723,631.13,630.58,0.26383843]
[1742986415955,1.19294723,631.12,630.58,0.26383843]
[1742986416151,1.19294723,631.11,630.58,0.26383843]
[1742986416353,0.581,631.12,630.58,0.26383843]
[1742986416548,1.19284052,631.11,630.58,0.26383843]
[1742986416748,1.19283962,631.1,630.58,0.26383843]
[1742986416950,1.19283962,631.09,630.75,1.18258271]
[1742986417253,1.19283962,631.08,630.75,1.18258271]
[1742986417447,0.581,631.12,630.75,1.18258271]
[1742986417651,1.19274461,631.11,630.75,1.18258271]
[1742986417952,1.19274461,631.1,630.75,1.18258271]
[1742986418152,1.19274461,631.09,630.75,1.18258271]
[1742986418353,1.19274461,631.08,630.75,1.18258271]
[1742986418557,1.19274461,631.07,630.75,1.18258271]
[1742986418749,1.19274461,631.06,630.75,1.18258271]
[1742986418953,1.19274461,631.05,630.75,1.18258271]
[1742986419254,1.19274461,631.04,630.75,1.18258271]
[1742986419454,0.581,631.12,630.75,1.18258271]
[1742986419648,1.19258806,631.11,630.75,1.18258271]
[1742986419959,1.19258806,631.1,630.75,1.18258271]
[1742986420256,1.19258806,631.09,630.73,1.18258271]
[1742986420453,1.19258806,631.08,630.73,1.18258271]
[1742986420754,1.19258806,631.07,630.73,1.18258271]
[1742986421053,1.19258806,631.06,630.73,1.18258271]
[1742986421253,1.19258806,631.05,630.73,1.18258271]
[1742986421454,1.19258806,631.04,630.73,1.18258271]
[1742986421654,0.437,631.11,630.73,1.18258271]
[1742986421953,1.19247913,631.1,630.73,1.18258271]
[1742986422155,1.19247913,631.09,630.73,1.18258271]
[1742986422355,1.19247913,631.09,630.57,0.31717335]
[1742986422356,1.19247913,631.08,630.69,1.18258271]
[1742986422648,1.19247913,631.07,630.69,1.18258271]
[1742986422852,1.19243309,631.06,630.69,1.18258271]
[1742986423050,1.19243309,631.05,630.69,1.18258271]
[1742986423253,1.19243309,631.04,630.69,1.18258271]
[1742986423553,0.437,631.11,630.69,1.18258271]
[1742986423756,1.1923975,631.1,630.69,1.18258271]
[1742986423956,1.1923975,631.09,630.69,1.18258271]
[1742986424255,1.1923975,631.08,630.69,1.18258271]
[1742986424456,1.1923975,631.07,630.69,1.18258271]
[1742986424656,1.1923975,631.06,630.69,1.18258271]
[1742986424857,1.1923975,631.05,630.69,1.18258271]
[1742986425156,1.1923975,631.04,630.69,1.18258271]
[1742986425352,1.1923975,631.03,630.62,1.18258271]
[1742986425553,0.437,631.11,630.62,1.18258271]
[1742986425757,1.19235824,631.1,630.62,1.18258271]
[1742986425955,1.19235824,631.09,630.62,1.18258271]
[1742986426155,1.19235824,631.08,630.62,1.18258271]
[1742986426351,1.19235824,631.07,630.62,1.18258271]
[1742986426556,1.19235824,631.06,630.62,1.18258271]
[1742986426753,1.19235824,631.05,630.62,1.18258271]
[1742986426952,1.19235824,631.04,630.62,1.18258271]
[1742986427157,1.19235824,631.03,630.62,1.18258271]
[1742986427357,1.19235824,631.02,630.62,1.18258271]
[1742986427559,1.19235824,631.01,630.62,1.18258271]
[1742986427761,1.19235824,631.0,630.63,0.26408975]
[1742986427960,1.19235824,630.99,630.59,1.18258271]
[1742986428261,1.19235824,630.98,630.6,0.2640905]
[1742986428561,1.19235824,630.97,630.6,0.2640905]
[1742986428761,0.437,631.11,630.6,0.2640905]
[1742986428956,1.19230719,631.1,630.6,0.2640905]
[1742986429159,1.19230719,631.09,630.6,0.2640905]
[1742986429461,1.19230719,631.08,630.6,0.2640905]
[1742986429761,0.437,631.11,630.64,1.18258271]
[1742986429762,1.19230719,631.07,630.64,1.18258271]
[1742986429962,1.19230719,631.06,630.64,1.18258271]
[1742986430160,1.19230719,631.05,630.64,1.18258271]
[1742986430455,1.19230719,631.04,630.64,1.18258271]
[1742986430655,1.19230719,631.03,630.64,1.18258271]
[1742986430858,1.19230719,631.02,630.64,1.18258271]
[1742986431057,1.19230719,631.01,630.64,1.18258271]
[1742986431259,1.19230719,631.0,630.64,1.18258271]
[1742986431460,1.19230719,630.99,630.64,1.18258271]
[1742986431660,1.19230719,630.98,630.41,1.18258271]
[1742986431859,0.437,631.11,630.41,1.18258271]
[1742986432061,1.19217287,631.1,630.41,1.18258271]